[Event "Hull 4NCL GM Tournament"]
[Site "Hull University, Hull, UK"]
[Date "2021.10.22"]
[Round "5.4"]
[White "Royal, Shreyas"]
[Black "Clarke, Brandon G I"]
[Result "0-1"]
[TimeControl "90+30"]
[WhiteElo "2226"]
[BlackElo "2442"]

1. d4 {[%clk 01:30:55]} {[%emt 00:00:03]} Nf6 {[%clk 01:30:40]} {[%emt
00:00:12]} 2. c4 {[%clk 01:31:20]} {[%emt 00:00:14]} g6 {[%clk 01:31:04]}
{[%emt 00:00:06]} 3. Nc3 {[%clk 01:31:45]} {[%emt 00:00:05]} d5 {[%clk
01:31:29]} {[%emt 00:00:05]} 4. cxd5 {[%clk 01:32:08]} {[%emt 00:00:07]} Nxd5
{[%clk 01:31:54]} {[%emt 00:00:05]} 5. e4 {[%clk 01:32:31]} {[%emt 00:00:06]}
Nxc3 {[%clk 01:32:19]} {[%emt 00:00:06]} 6. bxc3 {[%clk 01:32:56]} {[%emt
00:00:05]} Bg7 {[%clk 01:32:43]} {[%emt 00:00:06]} 7. Bc4 {[%clk 01:33:19]}
{[%emt 00:00:07]} c5 {[%clk 01:33:09]} {[%emt 00:00:05]} 8. Ne2 {[%clk
01:33:25]} {[%emt 00:00:23]} Nc6 {[%clk 01:33:27]} {[%emt 00:00:13]} 9. Be3
{[%clk 01:33:49]} {[%emt 00:00:06]} O-O {[%clk 01:33:44]} {[%emt 00:00:13]} 10.
O-O {[%clk 01:33:56]} {[%emt 00:00:23]} Bg4 {[%clk 01:32:42]} {[%emt 00:01:32]}
11. f3 {[%clk 01:34:20]} {[%emt 00:00:05]} Bd7 {[%clk 01:33:07]} {[%emt
00:00:04]} 12. Rb1 {[%clk 01:32:33]} {[%emt 00:02:18]} Rc8 {[%clk 01:32:27]}
{[%emt 00:01:10]} 13. Qd2 {[%clk 01:28:06]} {[%emt 00:04:58]} Qc7 {[%clk
01:14:25]} {[%emt 00:18:31]} 14. Rfc1 {[%clk 01:18:16]} {[%emt 00:10:20]} Na5
{[%clk 01:13:17]} {[%emt 00:01:39]} 15. Bd3 {[%clk 01:18:13]} {[%emt 00:00:33]}
b6 {[%clk 01:10:20]} {[%emt 00:03:27]} 16. Bh6 {[%clk 01:09:40]} {[%emt
00:09:03]} e5 {[%clk 01:10:09]} {[%emt 00:00:41]} 17. h4 {[%clk 01:07:34]}
{[%emt 00:02:37]} Qd6 {[%clk 01:03:19]} {[%emt 00:07:19]} 18. Bxg7 {[%clk
00:52:06]} {[%emt 00:15:59]} Kxg7 {[%clk 01:03:47]} {[%emt 00:00:02]} 19. Qe3
{[%clk 00:52:24]} {[%emt 00:00:10]} Rfd8 {[%clk 00:58:21]} {[%emt 00:05:57]} 20.
d5 {[%clk 00:49:50]} {[%emt 00:03:05]} c4 {[%clk 00:58:13]} {[%emt 00:00:37]}
21. Bc2 {[%clk 00:50:18]} {[%emt 00:00:02]} Qc5 {[%clk 00:56:55]} {[%emt
00:01:49]} 22. Kf2 {[%clk 00:49:31]} {[%emt 00:01:17]} Nb7 {[%clk 00:56:39]}
{[%emt 00:00:46]} 23. g4 {[%clk 00:45:36]} {[%emt 00:04:26]} Nd6 {[%clk
00:55:48]} {[%emt 00:01:21]} 24. g5 {[%clk 00:44:08]} {[%emt 00:01:58]} h6
{[%clk 00:49:16]} {[%emt 00:07:01]} 25. Rh1 {[%clk 00:31:38]} {[%emt 00:13:00]}
Re8 {[%clk 00:47:45]} {[%emt 00:02:02]} 26. Rbg1 {[%clk 00:31:38]} {[%emt
00:00:29]} h5 {[%clk 00:47:26]} {[%emt 00:00:49]} 27. Ra1 {[%clk 00:29:00]}
{[%emt 00:03:10]} Qa3 {[%clk 00:46:06]} {[%emt 00:01:49]} 28. Rhb1 {[%clk
00:28:02]} {[%emt 00:01:27]} Re7 {[%clk 00:46:02]} {[%emt 00:00:34]} 29. Kg3
{[%clk 00:26:38]} {[%emt 00:01:54]} Rf8 {[%clk 00:44:17]} {[%emt 00:02:16]} 30.
f4 {[%clk 00:23:59]} {[%emt 00:03:09]} exf4+ {[%clk 00:42:33]} {[%emt
00:02:14]} 31. Qxf4 {[%clk 00:24:26]} {[%emt 00:00:02]} Rfe8 {[%clk 00:40:51]}
{[%emt 00:02:12]} 32. Rf1 {[%clk 00:24:38]} {[%emt 00:00:18]} Bf5 {[%clk
00:21:00]} {[%emt 00:20:21]} 33. exf5 {[%clk 00:24:14]} {[%emt 00:00:54]} Rxe2
{[%clk 00:18:21]} {[%emt 00:03:10]} 34. Qd4+ {[%clk 00:23:06]} {[%emt
00:01:38]} Kg8 {[%clk 00:18:20]} {[%emt 00:00:30]} 35. fxg6 {[%clk 00:22:06]}
{[%emt 00:01:31]} Rxc2 {[%clk 00:15:36]} {[%emt 00:03:14]} 36. gxf7+ {[%clk
00:22:19]} {[%emt 00:00:17]} Nxf7 {[%clk 00:15:53]} {[%emt 00:00:12]} 37. Rxf7
{[%clk 00:22:45]} {[%emt 00:00:05]} Rxc3+ {[%clk 00:15:31]} {[%emt 00:00:52]}
38. Kg2 {[%clk 00:22:53]} {[%emt 00:00:22]} Qb2+ {[%clk 00:15:46]} {[%emt
00:00:15]} 39. Rf2 {[%clk 00:23:13]} {[%emt 00:00:09]} Rg3+ {[%clk 00:15:58]}
{[%emt 00:00:19]} 0-1

[Event "Hull 4NCL GM Tournament"]
[Site "Hull University, Hull, UK"]
[Date "2021.10.22"]
[Round "5.5"]
[White "Fodor, Tamas Jr."]
[Black "Jackson, James P"]
[Result "1-0"]
[TimeControl "90+30"]
[WhiteElo "2524"]
[BlackElo "2386"]

1. d4 {[%clk 01:30:57]} {[%emt 00:00:02]} Nf6 {[%clk 01:30:49]} {[%emt
00:00:12]} 2. c4 {[%clk 01:31:21]} {[%emt 00:00:06]} e6 {[%clk 01:31:14]}
{[%emt 00:00:05]} 3. Nc3 {[%clk 01:31:28]} {[%emt 00:00:22]} Bb4 {[%clk
01:31:39]} {[%emt 00:00:06]} 4. e3 {[%clk 01:31:09]} {[%emt 00:00:49]} O-O
{[%clk 01:31:41]} {[%emt 00:00:28]} 5. Bd2 {[%clk 01:31:05]} {[%emt 00:00:33]}
d5 {[%clk 01:31:46]} {[%emt 00:00:25]} 6. Rc1 {[%clk 01:31:23]} {[%emt
00:00:12]} b6 {[%clk 01:26:04]} {[%emt 00:06:13]} 7. cxd5 {[%clk 01:30:54]}
{[%emt 00:00:58]} exd5 {[%clk 01:26:28]} {[%emt 00:00:06]} 8. Nf3 {[%clk
01:31:03]} {[%emt 00:00:21]} Re8 {[%clk 01:23:57]} {[%emt 00:03:01]} 9. Bd3
{[%clk 01:30:21]} {[%emt 00:01:12]} a6 {[%clk 01:20:31]} {[%emt 00:03:57]} 10.
Ne5 {[%clk 01:29:57]} {[%emt 00:00:54]} Bd6 {[%clk 01:20:56]} {[%emt 00:00:05]}
11. f4 {[%clk 01:29:33]} {[%emt 00:00:53]} Bb7 {[%clk 01:21:20]} {[%emt
00:00:06]} 12. O-O {[%clk 01:29:35]} {[%emt 00:00:28]} c5 {[%clk 01:21:13]}
{[%emt 00:00:38]} 13. Be1 {[%clk 01:28:51]} {[%emt 00:01:13]} c4 {[%clk
01:06:48]} {[%emt 00:14:56]} 14. Bb1 {[%clk 01:28:43]} {[%emt 00:00:38]} b5
{[%clk 01:07:13]} {[%emt 00:00:05]} 15. Bh4 {[%clk 01:28:21]} {[%emt 00:00:51]}
Ra7 {[%clk 01:07:20]} {[%emt 00:00:24]} 16. Rf3 {[%clk 01:26:18]} {[%emt
00:02:32]} Be7 {[%clk 01:04:37]} {[%emt 00:03:13]} 17. Bxf6 {[%clk 01:22:19]}
{[%emt 00:04:29]} Bxf6 {[%clk 01:04:19]} {[%emt 00:00:48]} 18. Bxh7+ {[%clk
01:21:20]} {[%emt 00:01:28]} Kf8 {[%clk 01:04:32]} {[%emt 00:00:17]} 19. Bb1
{[%clk 01:20:20]} {[%emt 00:01:30]} Bc8 {[%clk 01:00:20]} {[%emt 00:04:43]} 20.
Rf2 {[%clk 01:20:34]} {[%emt 00:00:16]} b4 {[%clk 00:58:52]} {[%emt 00:01:58]}
21. Ne2 {[%clk 01:19:08]} {[%emt 00:01:55]} Qb6 {[%clk 00:55:58]} {[%emt
00:03:24]} 22. Ng3 {[%clk 01:16:21]} {[%emt 00:03:16]} Bh4 {[%clk 00:51:46]}
{[%emt 00:04:43]} 23. Qh5 {[%clk 01:14:46]} {[%emt 00:02:05]} Qh6 {[%clk
00:52:08]} {[%emt 00:00:08]} 24. Qf3 {[%clk 01:11:12]} {[%emt 00:04:04]} Rd8
{[%clk 00:52:24]} {[%emt 00:00:15]} 25. Rd2 {[%clk 01:10:50]} {[%emt 00:00:52]}
a5 {[%clk 00:48:17]} {[%emt 00:04:38]} 26. e4 {[%clk 01:06:43]} {[%emt
00:04:36]} Bxg3 {[%clk 00:47:17]} {[%emt 00:01:30]} 27. hxg3 {[%clk 01:06:15]}
{[%emt 00:00:57]} f6 {[%clk 00:47:27]} {[%emt 00:00:20]} 28. Ng4 {[%clk
01:06:24]} {[%emt 00:00:21]} Bxg4 {[%clk 00:39:27]} {[%emt 00:08:30]} 29. Qxg4
{[%clk 01:06:44]} {[%emt 00:00:10]} Re7 {[%clk 00:39:22]} {[%emt 00:00:35]} 30.
exd5 {[%clk 01:04:16]} {[%emt 00:02:58]} Nd7 {[%clk 00:28:01]} {[%emt
00:11:51]} 31. d6 {[%clk 01:02:34]} {[%emt 00:02:11]} Rf7 {[%clk 00:24:36]}
{[%emt 00:03:55]} 32. Rxc4 {[%clk 01:02:02]} {[%emt 00:01:02]} f5 {[%clk
00:22:13]} {[%emt 00:02:53]} 33. Bxf5 {[%clk 00:59:53]} {[%emt 00:02:39]} Qxd6
{[%clk 00:22:02]} {[%emt 00:00:42]} 34. Qh4 {[%clk 00:58:10]} {[%emt 00:02:12]}
1-0

[ePGN "0.1;DGT LiveChess/2.2.5"]

[Event "Hull 4NCL GM Tournament"]
[Site "Hull University, Hull, UK"]
[Date "2021.10.23"]
[Round "6.2"]
[White "Clarke, Brandon G I"]
[Black "Fodor, Tamas Jr."]
[Result "1/2-1/2"]
[TimeControl "90+30"]
[WhiteElo "2442"]
[BlackElo "2524"]

1. e4 {[%clk 01:30:56]} {[%emt 00:00:03]} e6 {[%clk 01:30:56]} {[%emt
00:00:05]} 2. d4 {[%clk 01:31:21]} {[%emt 00:00:05]} d5 {[%clk 01:31:23]}
{[%emt 00:00:03]} 3. Nc3 {[%clk 01:31:43]} {[%emt 00:00:08]} Bb4 {[%clk
01:31:47]} {[%emt 00:00:05]} 4. e5 {[%clk 01:32:07]} {[%emt 00:00:06]} c5
{[%clk 01:32:13]} {[%emt 00:00:04]} 5. a3 {[%clk 01:32:31]} {[%emt 00:00:06]}
Bxc3+ {[%clk 01:32:38]} {[%emt 00:00:05]} 6. bxc3 {[%clk 01:32:55]} {[%emt
00:00:06]} Ne7 {[%clk 01:33:01]} {[%emt 00:00:07]} 7. Qg4 {[%clk 01:33:20]}
{[%emt 00:00:06]} Qc7 {[%clk 01:33:14]} {[%emt 00:00:17]} 8. Qxg7 {[%clk
01:33:36]} {[%emt 00:00:14]} Rg8 {[%clk 01:33:31]} {[%emt 00:00:12]} 9. Qxh7
{[%clk 01:33:58]} {[%emt 00:00:08]} cxd4 {[%clk 01:33:51]} {[%emt 00:00:11]} 10.
Ne2 {[%clk 01:34:15]} {[%emt 00:00:13]} Nbc6 {[%clk 01:33:44]} {[%emt
00:00:37]} 11. f4 {[%clk 01:34:36]} {[%emt 00:00:08]} dxc3 {[%clk 01:34:08]}
{[%emt 00:00:07]} 12. Qd3 {[%clk 01:34:08]} {[%emt 00:00:58]} d4 {[%clk
01:34:15]} {[%emt 00:00:21]} 13. Nxd4 {[%clk 01:34:17]} {[%emt 00:00:21]} Nxd4
{[%clk 01:34:37]} {[%emt 00:00:08]} 14. Qxd4 {[%clk 01:34:43]} {[%emt
00:00:05]} Bd7 {[%clk 01:34:10]} {[%emt 00:00:57]} 15. Rg1 {[%clk 01:34:41]}
{[%emt 00:00:31]} Nf5 {[%clk 01:34:02]} {[%emt 00:00:38]} 16. Qf2 {[%clk
01:34:55]} {[%emt 00:00:16]} Qc6 {[%clk 01:33:44]} {[%emt 00:00:49]} 17. Bd3
{[%clk 01:35:10]} {[%emt 00:00:14]} Qd5 {[%clk 01:27:34]} {[%emt 00:06:39]} 18.
Rb1 {[%clk 01:21:24]} {[%emt 00:14:17]} Bc6 {[%clk 01:21:24]} {[%emt 00:06:40]}
19. Rb3 {[%clk 01:19:25]} {[%emt 00:02:29]} O-O-O {[%clk 01:16:16]} {[%emt
00:05:39]} 20. Rxc3 {[%clk 01:19:09]} {[%emt 00:00:45]} Kb8 {[%clk 01:15:03]}
{[%emt 00:01:43]} 21. g4 {[%clk 01:12:41]} {[%emt 00:06:58]} Nd4 {[%clk
01:14:08]} {[%emt 00:01:25]} 22. Rg3 {[%clk 01:13:01]} {[%emt 00:00:10]} a6
{[%clk 00:59:37]} {[%emt 00:15:02]} 23. Be3 {[%clk 01:04:27]} {[%emt 00:09:03]}
Qh1+ {[%clk 00:52:22]} {[%emt 00:07:45]} 24. Bf1 {[%clk 01:04:33]} {[%emt
00:00:25]} Nb5 {[%clk 00:34:01]} {[%emt 00:18:52]} 25. Rd3 {[%clk 00:51:42]}
{[%emt 00:13:20]} Rxd3 {[%clk 00:30:30]} {[%emt 00:04:01]} 26. cxd3 {[%clk
00:51:58]} {[%emt 00:00:14]} Nxa3 {[%clk 00:30:45]} {[%emt 00:00:15]} 27. g5
{[%clk 00:24:30]} {[%emt 00:27:58]} 1/2-1/2

[Event "Hull 4NCL GM Tournament"]
[Site "Hull University, Hull, UK"]
[Date "2021.10.23"]
[Round "6.3"]
[White "Murphy, Conor E"]
[Black "Royal, Shreyas"]
[Result "1-0"]
[TimeControl "90+30"]
[WhiteElo "2428"]
[BlackElo "2226"]

1. e4 {[%clk 01:25:42]} {[%emt 00:05:17]} e5 {[%clk 01:30:52]} {[%emt
00:00:09]} 2. Nf3 {[%clk 01:26:02]} {[%emt 00:00:08]} Nc6 {[%clk 01:31:16]}
{[%emt 00:00:07]} 3. Bb5 {[%clk 01:26:21]} {[%emt 00:00:12]} a6 {[%clk
01:31:40]} {[%emt 00:00:06]} 4. Ba4 {[%clk 01:26:38]} {[%emt 00:00:12]} Nf6
{[%clk 01:32:03]} {[%emt 00:00:08]} 5. O-O {[%clk 01:26:59]} {[%emt 00:00:07]}
Be7 {[%clk 01:32:28]} {[%emt 00:00:06]} 6. Re1 {[%clk 01:27:16]} {[%emt
00:00:12]} b5 {[%clk 01:32:38]} {[%emt 00:00:21]} 7. Bb3 {[%clk 01:27:18]}
{[%emt 00:00:27]} d6 {[%clk 01:32:54]} {[%emt 00:00:14]} 8. c3 {[%clk
01:27:36]} {[%emt 00:00:12]} O-O {[%clk 01:33:13]} {[%emt 00:00:11]} 9. h3
{[%clk 01:28:01]} {[%emt 00:00:04]} Bb7 {[%clk 01:31:42]} {[%emt 00:02:01]} 10.
d4 {[%clk 01:28:18]} {[%emt 00:00:13]} Re8 {[%clk 01:31:45]} {[%emt 00:00:28]}
11. Nbd2 {[%clk 01:28:26]} {[%emt 00:00:21]} Bf8 {[%clk 01:31:49]} {[%emt
00:00:27]} 12. a3 {[%clk 01:28:08]} {[%emt 00:00:48]} h6 {[%clk 01:30:59]}
{[%emt 00:01:20]} 13. Bc2 {[%clk 01:28:25]} {[%emt 00:00:12]} Nb8 {[%clk
01:31:08]} {[%emt 00:00:21]} 14. b3 {[%clk 01:28:44]} {[%emt 00:00:12]} Nbd7
{[%clk 01:31:06]} {[%emt 00:00:31]} 15. Bb2 {[%clk 01:29:06]} {[%emt 00:00:07]}
g6 {[%clk 01:22:29]} {[%emt 00:09:09]} 16. Bd3 {[%clk 01:26:27]} {[%emt
00:03:09]} Bg7 {[%clk 01:16:13]} {[%emt 00:06:46]} 17. dxe5 {[%clk 01:24:40]}
{[%emt 00:02:17]} dxe5 {[%clk 01:11:56]} {[%emt 00:04:47]} 18. Qc2 {[%clk
01:24:25]} {[%emt 00:00:45]} Nc5 {[%clk 01:00:17]} {[%emt 00:12:11]} 19. Bf1
{[%clk 01:22:27]} {[%emt 00:02:26]} Nfd7 {[%clk 00:59:45]} {[%emt 00:01:03]} 20.
c4 {[%clk 01:14:52]} {[%emt 00:08:04]} c6 {[%clk 01:00:03]} {[%emt 00:00:13]}
21. Rad1 {[%clk 01:13:53]} {[%emt 00:01:29]} Ne6 {[%clk 00:47:28]} {[%emt
00:13:05]} 22. b4 {[%clk 01:11:16]} {[%emt 00:03:06]} Qe7 {[%clk 00:33:33]}
{[%emt 00:14:25]} 23. Nb3 {[%clk 01:06:53]} {[%emt 00:04:53]} Ng5 {[%clk
00:33:37]} {[%emt 00:00:27]} 24. Nxg5 {[%clk 00:54:53]} {[%emt 00:12:30]} hxg5
{[%clk 00:33:59]} {[%emt 00:00:08]} 25. Bc1 {[%clk 00:54:54]} {[%emt 00:00:28]}
Nf8 {[%clk 00:31:44]} {[%emt 00:02:45]} 26. Nc5 {[%clk 00:51:33]} {[%emt
00:03:51]} Bc8 {[%clk 00:30:25]} {[%emt 00:01:50]} 27. Be2 {[%clk 00:35:51]}
{[%emt 00:16:11]} Ne6 {[%clk 00:28:43]} {[%emt 00:02:11]} 28. Nxe6 {[%clk
00:34:04]} {[%emt 00:02:19]} Bxe6 {[%clk 00:29:05]} {[%emt 00:00:08]} 29. Be3
{[%clk 00:33:49]} {[%emt 00:00:45]} Bf8 {[%clk 00:24:26]} {[%emt 00:05:10]} 30.
Bc5 {[%clk 00:27:57]} {[%emt 00:06:22]} Qb7 {[%clk 00:24:49]} {[%emt 00:00:07]}
31. Bxf8 {[%clk 00:26:47]} {[%emt 00:01:39]} Kxf8 {[%clk 00:25:13]} {[%emt
00:00:06]} 32. Rd6 {[%clk 00:23:17]} {[%emt 00:03:59]} Qc8 {[%clk 00:17:38]}
{[%emt 00:08:06]} 33. Red1 {[%clk 00:14:55]} {[%emt 00:08:52]} Ra7 {[%clk
00:14:54]} {[%emt 00:03:14]} 34. Qc3 {[%clk 00:12:51]} {[%emt 00:02:34]} Bxc4
{[%clk 00:13:09]} {[%emt 00:02:16]} 35. Bxc4 {[%clk 00:12:05]} {[%emt
00:01:16]} bxc4 {[%clk 00:13:35]} {[%emt 00:00:04]} 36. Qxc4 {[%clk 00:09:08]}
{[%emt 00:03:26]} Rc7 {[%clk 00:13:56]} {[%emt 00:00:08]} 37. Qc1 {[%clk
00:08:14]} {[%emt 00:01:24]} g4 {[%clk 00:13:50]} {[%emt 00:00:36]} 38. Qg5
{[%clk 00:07:59]} {[%emt 00:00:45]} Rce7 {[%clk 00:13:12]} {[%emt 00:01:09]} 39.
hxg4 {[%clk 00:07:51]} {[%emt 00:00:37]} Qa8 {[%clk 00:12:00]} {[%emt
00:01:42]} 40. Qf6 {[%clk 00:06:56]} {[%emt 00:01:25]} Kg8 {[%clk 00:12:20]}
{[%emt 00:00:10]} 41. R1d3 {[%clk 00:07:03]} {[%emt 00:00:23]} Re6 {[%clk
00:11:12]} {[%emt 00:01:38]} 42. Rxe6 {[%clk 00:07:17]} {[%emt 00:00:16]} fxe6
{[%clk 00:11:39]} {[%emt 00:00:04]} 43. Rd7 {[%clk 00:07:25]} {[%emt 00:00:21]}
1-0

[Event "Hull 4NCL GM Tournament"]
[Site "Hull University, Hull, UK"]
[Date "2021.10.23"]
[Round "7.1"]
[White "Czopor, Maciej"]
[Black "Willow, Jonah B"]
[Result "1/2-1/2"]
[TimeControl "90+30"]
[WhiteElo "2411"]
[BlackElo "2353"]

1. e4 {[%clk 01:30:55]} {[%emt 00:00:05]} e5 {[%clk 01:30:55]} {[%emt
00:00:05]} 2. Nf3 {[%clk 01:31:18]} {[%emt 00:00:06]} Nc6 {[%clk 01:31:20]}
{[%emt 00:00:05]} 3. Bc4 {[%clk 01:30:34]} {[%emt 00:01:13]} Bc5 {[%clk
01:31:19]} {[%emt 00:00:32]} 4. c3 {[%clk 01:30:57]} {[%emt 00:00:07]} Nf6
{[%clk 01:31:39]} {[%emt 00:00:11]} 5. d4 {[%clk 01:31:20]} {[%emt 00:00:07]}
exd4 {[%clk 01:31:59]} {[%emt 00:00:10]} 6. e5 {[%clk 01:31:42]} {[%emt
00:00:08]} d5 {[%clk 01:32:25]} {[%emt 00:00:04]} 7. Bb5 {[%clk 01:32:03]}
{[%emt 00:00:09]} Ne4 {[%clk 01:32:41]} {[%emt 00:00:15]} 8. cxd4 {[%clk
01:32:26]} {[%emt 00:00:07]} Bb6 {[%clk 01:32:27]} {[%emt 00:00:44]} 9. Nc3
{[%clk 01:32:36]} {[%emt 00:00:20]} Bg4 {[%clk 01:31:01]} {[%emt 00:01:55]} 10.
Be3 {[%clk 01:31:05]} {[%emt 00:02:02]} O-O {[%clk 01:30:57]} {[%emt 00:00:34]}
11. h3 {[%clk 01:31:13]} {[%emt 00:00:22]} Bh5 {[%clk 01:30:44]} {[%emt
00:00:42]} 12. Qc2 {[%clk 01:31:21]} {[%emt 00:00:22]} Bg6 {[%clk 01:31:10]}
{[%emt 00:00:05]} 13. Qb3 {[%clk 01:31:31]} {[%emt 00:00:20]} Ne7 {[%clk
01:31:18]} {[%emt 00:00:21]} 14. O-O {[%clk 01:31:33]} {[%emt 00:00:27]} c6
{[%clk 01:31:18]} {[%emt 00:00:30]} 15. Bd3 {[%clk 01:31:50]} {[%emt 00:00:14]}
Nd2 {[%clk 01:31:41]} {[%emt 00:00:06]} 16. Nxd2 {[%clk 01:31:43]} {[%emt
00:00:37]} Bxd3 {[%clk 01:32:03]} {[%emt 00:00:09]} 17. Rfe1 {[%clk 01:32:05]}
{[%emt 00:00:07]} Bg6 {[%clk 01:31:19]} {[%emt 00:01:15]} 18. Na4 {[%clk
01:30:57]} {[%emt 00:01:38]} Nf5 {[%clk 01:27:09]} {[%emt 00:04:40]} 19. Nf3
{[%clk 01:19:21]} {[%emt 00:12:07]} Nxe3 {[%clk 01:18:46]} {[%emt 00:08:53]} 20.
Rxe3 {[%clk 01:07:51]} {[%emt 00:12:00]} f6 {[%clk 01:15:18]} {[%emt 00:03:57]}
21. Nxb6 {[%clk 01:01:51]} {[%emt 00:06:29]} Qxb6 {[%clk 01:07:00]} {[%emt
00:08:49]} 22. exf6 {[%clk 00:58:30]} {[%emt 00:03:50]} gxf6 {[%clk 01:04:35]}
{[%emt 00:02:55]} 23. Qc3 {[%clk 00:55:50]} {[%emt 00:03:10]} Rae8 {[%clk
00:55:42]} {[%emt 00:09:23]} 24. Rae1 {[%clk 00:55:36]} {[%emt 00:00:45]} Re4
{[%clk 00:51:40]} {[%emt 00:04:32]} 25. Rxe4 {[%clk 00:49:06]} {[%emt
00:07:00]} dxe4 {[%clk 00:46:59]} {[%emt 00:05:10]} 26. Nd2 {[%clk 00:49:26]}
{[%emt 00:00:10]} f5 {[%clk 00:46:41]} {[%emt 00:00:49]} 27. Nc4 {[%clk
00:49:31]} {[%emt 00:00:25]} Qd8 {[%clk 00:46:21]} {[%emt 00:00:50]} 28. Ne5
{[%clk 00:46:19]} {[%emt 00:03:42]} Qd5 {[%clk 00:42:02]} {[%emt 00:04:49]} 29.
Qg3 {[%clk 00:40:22]} {[%emt 00:06:27]} Qxd4 {[%clk 00:35:54]} {[%emt
00:06:37]} 30. Nxg6 {[%clk 00:40:16]} {[%emt 00:00:36]} hxg6 {[%clk 00:36:21]}
{[%emt 00:00:04]} 31. Qxg6+ {[%clk 00:40:23]} {[%emt 00:00:23]} Qg7 {[%clk
00:36:37]} {[%emt 00:00:13]} 32. Qe6+ {[%clk 00:39:33]} {[%emt 00:01:20]} Qf7
{[%clk 00:36:15]} {[%emt 00:00:52]} 33. Qh6 {[%clk 00:38:01]} {[%emt 00:02:02]}
Qf6 {[%clk 00:32:58]} {[%emt 00:03:47]} 34. Qf4 {[%clk 00:36:16]} {[%emt
00:02:14]} Qxb2 {[%clk 00:22:04]} {[%emt 00:11:24]} 35. Re3 {[%clk 00:35:07]}
{[%emt 00:01:40]} Rf7 {[%clk 00:21:47]} {[%emt 00:00:48]} 36. Rg3+ {[%clk
00:32:43]} {[%emt 00:02:54]} Rg7 {[%clk 00:21:58]} {[%emt 00:00:19]} 37. Rxg7+
{[%clk 00:31:47]} {[%emt 00:01:25]} Qxg7 {[%clk 00:18:21]} {[%emt 00:04:07]} 38.
Qxf5 {[%clk 00:31:56]} {[%emt 00:00:21]} Qe7 {[%clk 00:18:07]} {[%emt
00:00:44]} 39. h4 {[%clk 00:30:43]} {[%emt 00:01:43]} Kh8 {[%clk 00:07:29]}
{[%emt 00:11:07]} 40. Qf4 {[%clk 00:25:44]} {[%emt 00:05:29]} c5 {[%clk
00:06:29]} {[%emt 00:01:31]} 41. h5 {[%clk 00:22:59]} {[%emt 00:03:16]} c4
{[%clk 00:06:29]} {[%emt 00:00:30]} 42. Qh6+ {[%clk 00:23:15]} {[%emt
00:00:13]} Kg8 {[%clk 00:06:39]} {[%emt 00:00:21]} 43. Qg6+ {[%clk 00:23:41]}
{[%emt 00:00:04]} Kh8 {[%clk 00:06:57]} {[%emt 00:00:12]} 44. Qh6+ {[%clk
00:24:03]} {[%emt 00:00:07]} Kg8 {[%clk 00:07:18]} {[%emt 00:00:08]} 45. Qg6+
{[%clk 00:23:50]} {[%emt 00:00:43]} 1/2-1/2